[Event "Early-Titled-Tuesday-Blitz-February-20-2024"]
[Site "Chess.com"]
[Date "2024.02.20"]
[Round "2"]
[White "Brave_spirit12"]
[Black "annamaja"]
[Result "1-0"]
[WhiteElo "2726"]
[BlackElo "2395"]
[TimeControl "180+1"]
[EndTime "8:17:36 PST"]
[Termination "Brave_spirit12 won by resignation"]

1. e4 {[%clk 0:03:00.9]} 1... e6 {[%clk 0:03:00.5]} 2. d4 {[%clk 0:03:00.4]}
2... d5 {[%clk 0:03:01.3]} 3. Nc3 {[%clk 0:03:00.4]} 3... Nf6 {[%clk 0:03:01.6]}
4. e5 {[%clk 0:03:00.5]} 4... Nfd7 {[%clk 0:03:02]} 5. f4 {[%clk 0:03:01.3]}
5... c5 {[%clk 0:03:02.7]} 6. Nf3 {[%clk 0:03:02]} 6... Nc6 {[%clk 0:03:03.5]}
7. Be3 {[%clk 0:03:02.6]} 7... a6 {[%clk 0:03:03.1]} 8. Qd2 {[%clk 0:03:02.7]}
8... b5 {[%clk 0:03:03.3]} 9. a3 {[%clk 0:03:03.2]} 9... Qa5 {[%clk 0:03:02.4]}
10. Nb1 {[%clk 0:01:58.5]} 10... b4 {[%clk 0:02:53.4]} 11. Be2 {[%clk
0:01:51.4]} 11... Be7 {[%clk 0:02:38.6]} 12. O-O {[%clk 0:01:50.4]} 12... Kf8
{[%clk 0:02:38.7]} 13. c3 {[%clk 0:01:32.2]} 13... cxd4 {[%clk 0:01:54]} 14.
cxd4 {[%clk 0:01:28.7]} 14... Rb8 {[%clk 0:01:50.9]} 15. a4 {[%clk 0:01:13.7]}
15... b3 {[%clk 0:01:37.2]} 16. Nc3 {[%clk 0:01:13.2]} 16... Nb4 {[%clk
0:01:37.2]} 17. f5 {[%clk 0:01:11.2]} 17... exf5 {[%clk 0:01:30]} 18. Bg5 {[%clk
0:01:08.5]} 18... h6 {[%clk 0:01:25.5]} 19. Bxe7+ {[%clk 0:01:08.5]} 19... Kxe7
{[%clk 0:01:26.4]} 20. Nh4 {[%clk 0:01:06.7]} 20... g6 {[%clk 0:01:21]} 21. Bd3
{[%clk 0:01:05.4]} 21... Nxd3 {[%clk 0:01:06.8]} 22. Qxd3 {[%clk 0:01:06.3]}
22... Rb4 {[%clk 0:01:07.1]} 23. Rae1 {[%clk 0:01:00.4]} 23... Nb6 {[%clk
0:01:07.1]} 24. g4 {[%clk 0:00:50.5]} 24... Nc4 {[%clk 0:00:38.6]} 25. gxf5
{[%clk 0:00:46.9]} 25... g5 {[%clk 0:00:38.4]} 26. f6+ {[%clk 0:00:44.6]} 26...
Kd8 {[%clk 0:00:35]} 27. e6 {[%clk 0:00:40.6]} 27... Nxb2 {[%clk 0:00:31]} 28.
Qg3 {[%clk 0:00:33]} 28... Qb6 {[%clk 0:00:16.6]} 29. exf7 {[%clk 0:00:16.7]}
29... gxh4 {[%clk 0:00:07.3]} 30. Re8+ {[%clk 0:00:15.1]} 30... Rxe8 {[%clk
0:00:02.5]} 31. fxe8=Q+ {[%clk 0:00:16]} 31... Kxe8 {[%clk 0:00:03]} 32. f7+
{[%clk 0:00:16.6]} 32... Kd7 {[%clk 0:00:02.1]} 33. Qg4+ {[%clk 0:00:14]} 33...
Kc7 {[%clk 0:00:02]} 34. Nxd5+ {[%clk 0:00:14.3]} 34... Kb7 {[%clk 0:00:01.8]}
35. Qxc8+ {[%clk 0:00:14.9]} 35... Kxc8 {[%clk 0:00:01.6]} 36. Nxb6+ {[%clk
0:00:15.8]} 1-0

[Event "Early-Titled-Tuesday-Blitz-February-20-2024"]
[Site "Chess.com"]
[Date "2024.02.20"]
[Round "2"]
[White "Bigfish1995"]
[Black "NovozhilovSemen"]
[Result "1-0"]
[WhiteElo "3181"]
[BlackElo "2677"]
[TimeControl "180+1"]
[EndTime "8:17:37 PST"]
[Termination "Bigfish1995 won by resignation"]

1. e4 {[%clk 0:03:00.9]} 1... c5 {[%clk 0:02:59.5]} 2. Nf3 {[%clk 0:03:00.5]}
2... Nc6 {[%clk 0:02:59.2]} 3. Nc3 {[%clk 0:02:58.6]} 3... d6 {[%clk 0:02:57.8]}
4. d4 {[%clk 0:02:55.8]} 4... cxd4 {[%clk 0:02:58.7]} 5. Nxd4 {[%clk 0:02:55.7]}
5... Nf6 {[%clk 0:02:59.1]} 6. Nf3 {[%clk 0:02:44.3]} 6... e5 {[%clk 0:02:49.8]}
7. Bc4 {[%clk 0:02:37.1]} 7... Be7 {[%clk 0:02:45.3]} 8. O-O {[%clk 0:02:28.6]}
8... Be6 {[%clk 0:02:41.2]} 9. Bb3 {[%clk 0:02:22.9]} 9... O-O {[%clk
0:02:29.7]} 10. h3 {[%clk 0:02:12.9]} 10... h6 {[%clk 0:02:29.1]} 11. Nh4 {[%clk
0:02:03.9]} 11... Nd4 {[%clk 0:02:12.3]} 12. Bxe6 {[%clk 0:01:56.9]} 12... fxe6
{[%clk 0:02:11]} 13. Ng6 {[%clk 0:01:56.1]} 13... Rf7 {[%clk 0:02:10.5]} 14. f4
{[%clk 0:01:52.3]} 14... Nc6 {[%clk 0:01:59.2]} 15. f5 {[%clk 0:01:47]} 15...
exf5 {[%clk 0:01:55]} 16. Rxf5 {[%clk 0:01:35.6]} 16... Qb6+ {[%clk 0:01:51.2]}
17. Kh2 {[%clk 0:01:33.2]} 17... Kh7 {[%clk 0:01:08.3]} 18. Nd5 {[%clk
0:01:27.9]} 18... Qd4 {[%clk 0:00:26.4]} 19. Qxd4 {[%clk 0:01:15.3]} 19... Nxd4
{[%clk 0:00:27.3]} 20. Ngxe7 {[%clk 0:01:13.9]} 20... Nxf5 {[%clk 0:00:27]} 21.
Nxf6+ {[%clk 0:01:12.5]} 21... Rxf6 {[%clk 0:00:27.6]} 22. Nxf5 {[%clk
0:01:03.5]} 22... d5 {[%clk 0:00:27.8]} 23. Bd2 {[%clk 0:00:57.9]} 23... dxe4
{[%clk 0:00:25.3]} 24. Ne3 {[%clk 0:00:56.5]} 24... Rc8 {[%clk 0:00:12]} 25. Bc3
{[%clk 0:00:55.7]} 25... Rc5 {[%clk 0:00:12.2]} 26. a4 {[%clk 0:00:54.2]} 26...
a6 {[%clk 0:00:11.6]} 27. a5 {[%clk 0:00:52.9]} 27... h5 {[%clk 0:00:11.9]} 28.
Ra4 {[%clk 0:00:52.4]} 28... Rf4 {[%clk 0:00:09.5]} 29. Kg1 {[%clk 0:00:48.5]}
29... Kg6 {[%clk 0:00:09.3]} 30. Be1 {[%clk 0:00:45.3]} 30... h4 {[%clk
0:00:08.7]} 31. Bd2 {[%clk 0:00:43]} 31... Kf7 {[%clk 0:00:06.5]} 32. Rb4 {[%clk
0:00:29.6]} 32... Rc7 {[%clk 0:00:05.9]} 33. Rb6 {[%clk 0:00:23.9]} 33... Rf6
{[%clk 0:00:05.5]} 34. Rb4 {[%clk 0:00:22.3]} 34... Rd6 {[%clk 0:00:04.9]} 35.
Bc3 {[%clk 0:00:21.9]} 35... Rc5 {[%clk 0:00:04.1]} 36. Rxe4 {[%clk 0:00:21.8]}
36... g5 {[%clk 0:00:04.7]} 37. Bb4 {[%clk 0:00:19.1]} 1-0

[Event "Early-Titled-Tuesday-Blitz-February-20-2024"]
[Site "Chess.com"]
[Date "2024.02.20"]
[Round "2"]
[White "Mr_ruthless"]
[Black "Louis-Paulsen-Fan"]
[Result "0-1"]
[WhiteElo "2470"]
[BlackElo "2212"]
[TimeControl "180+1"]
[EndTime "8:17:41 PST"]
[Termination "Louis-Paulsen-Fan won by checkmate"]

1. c4 {[%clk 0:03:00.9]} 1... e6 {[%clk 0:02:59.6]} 2. Nf3 {[%clk 0:02:59.2]}
2... d5 {[%clk 0:02:59.7]} 3. b3 {[%clk 0:02:55.8]} 3... c5 {[%clk 0:02:59.3]}
4. Bb2 {[%clk 0:02:54.6]} 4... d4 {[%clk 0:02:59.3]} 5. g3 {[%clk 0:02:51.6]}
5... Nc6 {[%clk 0:02:59.1]} 6. Bg2 {[%clk 0:02:52.2]} 6... Nf6 {[%clk
0:02:59.1]} 7. O-O {[%clk 0:02:52.8]} 7... Bd6 {[%clk 0:02:59.2]} 8. e3 {[%clk
0:02:50.1]} 8... e5 {[%clk 0:02:59.3]} 9. exd4 {[%clk 0:02:48]} 9... cxd4 {[%clk
0:02:59.7]} 10. d3 {[%clk 0:02:47.2]} 10... O-O {[%clk 0:02:59.6]} 11. Re1
{[%clk 0:02:45.7]} 11... Bg4 {[%clk 0:02:55.7]} 12. Nbd2 {[%clk 0:02:46.1]}
12... Nd7 {[%clk 0:02:50.4]} 13. h3 {[%clk 0:02:42.2]} 13... Bh5 {[%clk
0:02:49.8]} 14. g4 {[%clk 0:02:14.2]} 14... Bg6 {[%clk 0:02:49.4]} 15. Ne4
{[%clk 0:02:14.8]} 15... Bc7 {[%clk 0:02:27.9]} 16. a3 {[%clk 0:02:14.8]} 16...
a5 {[%clk 0:02:26.4]} 17. Qd2 {[%clk 0:02:09.7]} 17... Re8 {[%clk 0:02:19.2]}
18. b4 {[%clk 0:02:06.1]} 18... axb4 {[%clk 0:02:19.5]} 19. axb4 {[%clk
0:02:07]} 19... Rxa1 {[%clk 0:02:16.1]} 20. Rxa1 {[%clk 0:02:00.9]} 20... Nf8
{[%clk 0:02:15]} 21. Nc5 {[%clk 0:01:52]} 21... b6 {[%clk 0:02:04.5]} 22. Nb3
{[%clk 0:01:23.7]} 22... Ne6 {[%clk 0:02:01.7]} 23. Nh4 {[%clk 0:01:20]} 23...
Qxh4 {[%clk 0:01:44.8]} 24. Bxc6 {[%clk 0:01:20]} 24... Rd8 {[%clk 0:01:38.1]}
25. Bg2 {[%clk 0:01:08.4]} 25... Nf4 {[%clk 0:01:37.7]} 26. Ra7 {[%clk
0:01:01.5]} 26... Bb8 {[%clk 0:01:29.8]} 27. Ra8 {[%clk 0:01:01.7]} 27... Nxh3+
{[%clk 0:01:07.9]} 28. Kf1 {[%clk 0:01:00.7]} 28... Nf4 {[%clk 0:00:54.9]} 29.
Nxd4 {[%clk 0:01:00.1]} 29... Bxd3+ {[%clk 0:00:23.5]} 30. Kg1 {[%clk
0:00:53.9]} 30... Qxg4 {[%clk 0:00:23.6]} 31. f3 {[%clk 0:00:52]} 31... Qg3
{[%clk 0:00:22.7]} 32. Nf5 {[%clk 0:00:36.4]} 32... Qg5 {[%clk 0:00:21]} 33. Ne3
{[%clk 0:00:23.1]} 33... Nxg2 {[%clk 0:00:18]} 34. Rxb8 {[%clk 0:00:07]} 34...
Nxe3+ {[%clk 0:00:15.1]} 35. Kh1 {[%clk 0:00:07]} 35... Rxb8 {[%clk 0:00:14]}
36. Qxd3 {[%clk 0:00:07.6]} 36... Qg2# {[%clk 0:00:11.5]} 0-1

[Event "Early-Titled-Tuesday-Blitz-February-20-2024"]
[Site "Chess.com"]
[Date "2024.02.20"]
[Round "2"]
[White "Bkmzzzzz"]
[Black "mr65"]
[Result "1-0"]
[WhiteElo "2417"]
[BlackElo "1970"]
[TimeControl "180+1"]
[EndTime "8:17:41 PST"]
[Termination "Bkmzzzzz won by resignation"]

1. e4 {[%clk 0:02:59.5]} 1... e5 {[%clk 0:02:59.2]} 2. Nf3 {[%clk 0:02:59.1]}
2... d6 {[%clk 0:02:59.3]} 3. Nc3 {[%clk 0:02:57.5]} 3... Nf6 {[%clk 0:02:58.6]}
4. d4 {[%clk 0:02:58.1]} 4... Nbd7 {[%clk 0:02:57.5]} 5. Bc4 {[%clk 0:02:57.5]}
5... Be7 {[%clk 0:02:57.3]} 6. dxe5 {[%clk 0:02:57.2]} 6... dxe5 {[%clk
0:02:56.5]} 7. Ng5 {[%clk 0:02:57.7]} 7... O-O {[%clk 0:02:55.8]} 8. Bxf7+
{[%clk 0:02:57.3]} 8... Rxf7 {[%clk 0:02:55.2]} 9. Ne6 {[%clk 0:02:58]} 9... Qe8
{[%clk 0:02:50.9]} 10. Nxc7 {[%clk 0:02:58.6]} 10... Qd8 {[%clk 0:02:51.1]} 11.
Nxa8 {[%clk 0:02:59.4]} 11... b6 {[%clk 0:02:47]} 12. Be3 {[%clk 0:02:52.5]}
12... Bb7 {[%clk 0:02:46.8]} 13. Nxb6 {[%clk 0:02:51]} 13... axb6 {[%clk
0:02:42.3]} 14. f3 {[%clk 0:02:49.9]} 14... Qc7 {[%clk 0:02:39.1]} 15. O-O
{[%clk 0:02:49.9]} 15... Nc5 {[%clk 0:02:34.4]} 16. Nd5 {[%clk 0:02:44.2]} 16...
Nxd5 {[%clk 0:02:33.5]} 17. exd5 {[%clk 0:02:45.1]} 17... Bd6 {[%clk 0:02:30.1]}
18. c4 {[%clk 0:02:44.7]} 18... Bc8 {[%clk 0:02:25.1]} 19. Rc1 {[%clk
0:02:41.4]} 19... e4 {[%clk 0:02:18.8]} 20. h3 {[%clk 0:01:55.7]} 20... Bh2+
{[%clk 0:01:55.7]} 21. Kh1 {[%clk 0:01:55.3]} 21... Nd3 {[%clk 0:01:55.5]} 22.
Rc2 {[%clk 0:01:45.5]} 22... Bg3 {[%clk 0:01:54.7]} 23. fxe4 {[%clk 0:01:39.4]}
23... Rxf1+ {[%clk 0:01:51.8]} 24. Qxf1 {[%clk 0:01:40.3]} 24... Ne5 {[%clk
0:01:51.8]} 25. Bf4 {[%clk 0:01:35.9]} 25... Bxf4 {[%clk 0:01:47.7]} 26. Qxf4
{[%clk 0:01:36.8]} 26... h6 {[%clk 0:01:44]} 27. b4 {[%clk 0:01:33.2]} 27... g5
{[%clk 0:01:43.6]} 28. Qf6 {[%clk 0:01:30.2]} 28... g4 {[%clk 0:01:38.2]} 29. d6
{[%clk 0:01:23.2]} 29... Qg7 {[%clk 0:01:33.5]} 30. Qxg7+ {[%clk 0:01:14.1]}
30... Kxg7 {[%clk 0:01:33.4]} 31. hxg4 {[%clk 0:01:14.6]} 31... Kf6 {[%clk
0:01:31.4]} 32. c5 {[%clk 0:01:13.7]} 32... bxc5 {[%clk 0:01:30.4]} 33. bxc5
{[%clk 0:01:08.4]} 33... Bd7 {[%clk 0:01:30.3]} 34. Kh2 {[%clk 0:01:05.7]} 34...
Bc6 {[%clk 0:01:30.1]} 35. Re2 {[%clk 0:01:01.2]} 35... Nd3 {[%clk 0:01:26]} 36.
a3 {[%clk 0:00:53.4]} 36... Ke5 {[%clk 0:01:25.7]} 37. Kh3 {[%clk 0:00:51.8]}
37... Nxc5 {[%clk 0:01:22.2]} 38. Rc2 {[%clk 0:00:51.1]} 38... Kxd6 {[%clk
0:01:21.8]} 39. e5+ {[%clk 0:00:51.4]} 39... Kd5 {[%clk 0:01:20.8]} 40. Kh4
{[%clk 0:00:49.5]} 40... Nd3 {[%clk 0:01:14.6]} 41. Kh5 {[%clk 0:00:49.4]} 41...
Nxe5 {[%clk 0:01:14.3]} 42. Kxh6 {[%clk 0:00:49.2]} 42... Nxg4+ {[%clk
0:01:14.4]} 43. Kg5 {[%clk 0:00:49.8]} 43... Ne3 {[%clk 0:01:14.2]} 44. Re2
{[%clk 0:00:49.1]} 44... Kd4 {[%clk 0:01:13.7]} 45. g4 {[%clk 0:00:48]} 45...
Bf3 {[%clk 0:01:12]} 46. Rf2 {[%clk 0:00:43.9]} 46... Bxg4 {[%clk 0:01:11.3]}
47. Kf4 {[%clk 0:00:39.9]} 47... Nd1 {[%clk 0:01:00.2]} 48. Rh2 {[%clk
0:00:20.9]} 48... Bd7 {[%clk 0:00:51.8]} 49. Rd2+ {[%clk 0:00:20.6]} 49... Kc4
{[%clk 0:00:51.3]} 50. Rxd1 {[%clk 0:00:19.9]} 50... Ba4 {[%clk 0:00:51.1]} 51.
Ra1 {[%clk 0:00:19.5]} 51... Kb3 {[%clk 0:00:51]} 52. Ke4 {[%clk 0:00:19.9]}
52... Kb2 {[%clk 0:00:51.2]} 53. Re1 {[%clk 0:00:20.4]} 53... Kxa3 {[%clk
0:00:51.4]} 54. Kd4 {[%clk 0:00:21.3]} 54... Kb4 {[%clk 0:00:51.3]} 55. Re7
{[%clk 0:00:20.7]} 55... Bb5 {[%clk 0:00:50.1]} 56. Re1 {[%clk 0:00:20.9]} 56...
Ba6 {[%clk 0:00:48.3]} 57. Rb1+ {[%clk 0:00:21.5]} 57... Ka5 {[%clk 0:00:48.1]}
58. Kc5 {[%clk 0:00:22.1]} 58... Ka4 {[%clk 0:00:44.4]} 59. Ra1+ {[%clk
0:00:22.7]} 59... Kb3 {[%clk 0:00:44.4]} 60. Rxa6 {[%clk 0:00:23.6]} 1-0

[Event "Early-Titled-Tuesday-Blitz-February-20-2024"]
[Site "Chess.com"]
[Date "2024.02.20"]
[Round "2"]
[White "Kobalia"]
[Black "pr1105"]
[Result "1-0"]
[WhiteElo "2789"]
[BlackElo "2402"]
[TimeControl "180+1"]
[EndTime "8:17:42 PST"]
[Termination "Kobalia won on time"]

1. e4 {[%clk 0:03:00.9]} 1... e5 {[%clk 0:02:59.9]} 2. Nf3 {[%clk 0:03:00.8]}
2... Nc6 {[%clk 0:02:58.9]} 3. Bb5 {[%clk 0:03:00.7]} 3... Nf6 {[%clk
0:02:57.6]} 4. d3 {[%clk 0:02:57]} 4... Bc5 {[%clk 0:02:57.2]} 5. c3 {[%clk
0:02:55.7]} 5... O-O {[%clk 0:02:56.2]} 6. O-O {[%clk 0:02:55.4]} 6... d5 {[%clk
0:02:55.8]} 7. Nbd2 {[%clk 0:02:55.6]} 7... dxe4 {[%clk 0:02:53.5]} 8. dxe4
{[%clk 0:02:56.5]} 8... a5 {[%clk 0:02:54]} 9. Qe2 {[%clk 0:02:55.4]} 9... Qe7
{[%clk 0:02:53]} 10. h3 {[%clk 0:02:44.8]} 10... h6 {[%clk 0:02:52]} 11. Re1
{[%clk 0:02:43.6]} 11... a4 {[%clk 0:02:35.7]} 12. Nc4 {[%clk 0:02:32.9]} 12...
Nd7 {[%clk 0:02:12.4]} 13. Ne3 {[%clk 0:02:30.1]} 13... Bxe3 {[%clk 0:01:43.6]}
14. Bxe3 {[%clk 0:02:28.7]} 14... Nc5 {[%clk 0:01:41.1]} 15. Qc4 {[%clk
0:02:21.9]} 15... Ne6 {[%clk 0:01:24]} 16. Bxc6 {[%clk 0:02:21.2]} 16... bxc6
{[%clk 0:01:24.9]} 17. Nxe5 {[%clk 0:02:20.9]} 17... c5 {[%clk 0:01:22]} 18.
Rad1 {[%clk 0:02:10.4]} 18... Ba6 {[%clk 0:01:13.4]} 19. Qd5 {[%clk 0:02:10]}
19... Bb5 {[%clk 0:00:50.7]} 20. c4 {[%clk 0:01:52.4]} 20... Rfd8 {[%clk
0:00:44.5]} 21. Nc6 {[%clk 0:01:40.8]} 21... Bxc6 {[%clk 0:00:43]} 22. Qxc6
{[%clk 0:01:41.7]} 22... Rab8 {[%clk 0:00:40.4]} 23. Rxd8+ {[%clk 0:01:37.6]}
23... Qxd8 {[%clk 0:00:41.3]} 24. Qxa4 {[%clk 0:01:26.8]} 24... Rxb2 {[%clk
0:00:36.1]} 25. Qa3 {[%clk 0:01:26.3]} 25... Rb4 {[%clk 0:00:27.1]} 26. Bxc5
{[%clk 0:01:25.8]} 26... Rxc4 {[%clk 0:00:26.3]} 27. Be3 {[%clk 0:01:15.6]}
27... Rc2 {[%clk 0:00:23.5]} 28. Qb3 {[%clk 0:01:13.7]} 28... Rc6 {[%clk
0:00:19.6]} 29. a4 {[%clk 0:01:08.7]} 29... Ra6 {[%clk 0:00:19.3]} 30. Ra1
{[%clk 0:01:03.1]} 30... Qa8 {[%clk 0:00:19]} 31. Qc4 {[%clk 0:01:01.7]} 31...
c5 {[%clk 0:00:16.5]} 32. f4 {[%clk 0:00:57.4]} 32... Rb6 {[%clk 0:00:11.6]} 33.
a5 {[%clk 0:00:55.6]} 33... Rb4 {[%clk 0:00:11.7]} 34. Qd5 {[%clk 0:00:55.6]}
34... Qa6 {[%clk 0:00:08.1]} 35. f5 {[%clk 0:00:55.4]} 35... Ng5 {[%clk
0:00:03.5]} 36. Bxg5 {[%clk 0:00:37.8]} 36... hxg5 {[%clk 0:00:04.4]} 37. Qd8+
{[%clk 0:00:37.3]} 37... Kh7 {[%clk 0:00:04.3]} 38. Qxg5 {[%clk 0:00:37.7]}
38... Qe2 {[%clk 0:00:04.3]} 39. a6 {[%clk 0:00:31.1]} 39... Rxe4 {[%clk
0:00:03.2]} 40. a7 {[%clk 0:00:29.5]} 40... Qb2 {[%clk 0:00:01.9]} 41. a8=Q
{[%clk 0:00:28.4]} 1-0

[Event "Early-Titled-Tuesday-Blitz-February-20-2024"]
[Site "Chess.com"]
[Date "2024.02.20"]
[Round "2"]
[White "bescmelasti"]
[Black "vi_pranav"]
[Result "0-1"]
[WhiteElo "2654"]
[BlackElo "3053"]
[TimeControl "180+1"]
[EndTime "8:17:43 PST"]
[Termination "vi_pranav won on time"]

1. e4 {[%clk 0:03:00.9]} 1... e5 {[%clk 0:02:59.6]} 2. Nf3 {[%clk 0:03:01.1]}
2... Nc6 {[%clk 0:02:59.9]} 3. Bc4 {[%clk 0:03:01.7]} 3... Nf6 {[%clk 0:03:00]}
4. d3 {[%clk 0:03:02.6]} 4... h6 {[%clk 0:03:00.2]} 5. O-O {[%clk 0:03:01.9]}
5... d6 {[%clk 0:02:59.9]} 6. a4 {[%clk 0:03:01.4]} 6... g6 {[%clk 0:02:59.8]}
7. Nc3 {[%clk 0:02:57.7]} 7... Bg7 {[%clk 0:02:59.8]} 8. h3 {[%clk 0:02:57.9]}
8... O-O {[%clk 0:02:59.8]} 9. Re1 {[%clk 0:02:58.6]} 9... Be6 {[%clk
0:02:59.8]} 10. Nd5 {[%clk 0:02:48.4]} 10... Bxd5 {[%clk 0:02:33.9]} 11. exd5
{[%clk 0:02:48]} 11... Ne7 {[%clk 0:02:29.5]} 12. d4 {[%clk 0:02:48.4]} 12... e4
{[%clk 0:02:27.7]} 13. Nd2 {[%clk 0:02:48.2]} 13... c6 {[%clk 0:02:27.8]} 14.
dxc6 {[%clk 0:02:08.9]} 14... bxc6 {[%clk 0:02:26.5]} 15. Bb3 {[%clk 0:02:04.6]}
15... d5 {[%clk 0:02:26]} 16. c4 {[%clk 0:02:04.8]} 16... Nf5 {[%clk 0:02:26.2]}
17. Nf1 {[%clk 0:02:03.8]} 17... Rb8 {[%clk 0:02:14.5]} 18. cxd5 {[%clk
0:02:01.5]} 18... cxd5 {[%clk 0:02:14]} 19. Bf4 {[%clk 0:01:48.2]} 19... Rb4
{[%clk 0:02:06.9]} 20. Be5 {[%clk 0:01:48.5]} 20... Nh7 {[%clk 0:01:31.2]} 21.
Ne3 {[%clk 0:01:44]} 21... Nxe3 {[%clk 0:01:13.2]} 22. Rxe3 {[%clk 0:01:41]}
22... Ng5 {[%clk 0:01:13.4]} 23. a5 {[%clk 0:01:26.1]} 23... Ne6 {[%clk
0:01:09.4]} 24. Qd2 {[%clk 0:01:04.2]} 24... Bxe5 {[%clk 0:00:46.3]} 25. Qxb4
{[%clk 0:00:50.2]} 25... Bxd4 {[%clk 0:00:46.6]} 26. Ree1 {[%clk 0:00:46.3]}
26... Qg5 {[%clk 0:00:46.2]} 27. Bxd5 {[%clk 0:00:12.1]} 27... Qxd5 {[%clk
0:00:44.3]} 28. Rad1 {[%clk 0:00:12.3]} 28... Qe5 {[%clk 0:00:34.2]} 29. Qc4
{[%clk 0:00:10.5]} 29... Qf6 {[%clk 0:00:28.4]} 30. Re2 {[%clk 0:00:10.1]} 30...
Rd8 {[%clk 0:00:25.7]} 31. Kf1 {[%clk 0:00:07.4]} 31... e3 {[%clk 0:00:18.8]}
32. f3 {[%clk 0:00:01.9]} 32... Nf4 {[%clk 0:00:19.1]} 33. Rc2 {[%clk
0:00:01.5]} 33... e2+ {[%clk 0:00:17.3]} 34. Rxe2 {[%clk 0:00:02.1]} 34... Nxe2
{[%clk 0:00:18.2]} 35. Qxe2 {[%clk 0:00:02.6]} 35... Rb8 {[%clk 0:00:16.7]} 0-1

[Event "Early-Titled-Tuesday-Blitz-February-20-2024"]
[Site "Chess.com"]
[Date "2024.02.20"]
[Round "2"]
[White "dropstoneDP"]
[Black "lucasran"]
[Result "1-0"]
[WhiteElo "3035"]
[BlackElo "2650"]
[TimeControl "180+1"]
[EndTime "8:17:44 PST"]
[Termination "dropstoneDP won by resignation"]

1. e4 {[%clk 0:03:00.9]} 1... c6 {[%clk 0:02:57.2]} 2. d4 {[%clk 0:03:00.1]}
2... d5 {[%clk 0:02:58.1]} 3. exd5 {[%clk 0:02:59.5]} 3... cxd5 {[%clk
0:02:58.4]} 4. Nf3 {[%clk 0:03:00]} 4... Nc6 {[%clk 0:02:58.8]} 5. c3 {[%clk
0:03:00]} 5... Nf6 {[%clk 0:02:58.8]} 6. Ne5 {[%clk 0:02:59.5]} 6... e6 {[%clk
0:02:51.5]} 7. Bb5 {[%clk 0:02:55.6]} 7... Qc7 {[%clk 0:02:51]} 8. Bf4 {[%clk
0:02:54]} 8... Bd6 {[%clk 0:02:51.4]} 9. O-O {[%clk 0:02:52]} 9... O-O {[%clk
0:02:51.7]} 10. Re1 {[%clk 0:02:50.5]} 10... Nd7 {[%clk 0:02:41.8]} 11. Nxd7
{[%clk 0:02:47.8]} 11... Bxd7 {[%clk 0:02:37.2]} 12. Bxd6 {[%clk 0:02:48.1]}
12... Qxd6 {[%clk 0:02:37.6]} 13. Nd2 {[%clk 0:02:47.7]} 13... Na5 {[%clk
0:02:23.9]} 14. Bd3 {[%clk 0:02:47.3]} 14... b5 {[%clk 0:02:23.5]} 15. Nb3
{[%clk 0:02:43.2]} 15... Nc4 {[%clk 0:02:21]} 16. Qe2 {[%clk 0:02:31.9]} 16...
Rfc8 {[%clk 0:02:06.8]} 17. Nc5 {[%clk 0:02:30.5]} 17... Rab8 {[%clk 0:02:05.6]}
18. b3 {[%clk 0:02:28.6]} 18... Na5 {[%clk 0:02:06]} 19. b4 {[%clk 0:02:24.1]}
19... Nc4 {[%clk 0:02:00]} 20. a4 {[%clk 0:02:23.7]} 20... a6 {[%clk 0:01:27.4]}
21. g3 {[%clk 0:02:13.1]} 21... h6 {[%clk 0:01:10.4]} 22. Ra2 {[%clk 0:02:10.9]}
22... Re8 {[%clk 0:00:28.4]} 23. Nxd7 {[%clk 0:01:49.9]} 23... Qxd7 {[%clk
0:00:28.6]} 24. axb5 {[%clk 0:01:50.6]} 24... axb5 {[%clk 0:00:27.3]} 25. Bxc4
{[%clk 0:01:51.1]} 25... dxc4 {[%clk 0:00:25.4]} 26. Qe4 {[%clk 0:01:51.7]}
26... Qb7 {[%clk 0:00:16.6]} 27. Qxb7 {[%clk 0:01:47.9]} 27... Rxb7 {[%clk
0:00:17.5]} 28. Re5 {[%clk 0:01:48.5]} 28... Rd8 {[%clk 0:00:13]} 29. Ra5 {[%clk
0:01:47.6]} 29... Rdb8 {[%clk 0:00:11.8]} 30. f4 {[%clk 0:01:46.6]} 30... g6
{[%clk 0:00:11.4]} 31. Kf2 {[%clk 0:01:46.7]} 31... Kg7 {[%clk 0:00:12]} 32. Kf3
{[%clk 0:01:45.7]} 32... Kf6 {[%clk 0:00:12.8]} 33. Rc5 {[%clk 0:01:45.5]} 33...
h5 {[%clk 0:00:11.8]} 34. h3 {[%clk 0:01:45.2]} 34... Rb6 {[%clk 0:00:11.8]} 35.
g4 {[%clk 0:01:45.3]} 35... hxg4+ {[%clk 0:00:12.6]} 36. hxg4 {[%clk 0:01:46.2]}
36... R6b7 {[%clk 0:00:11.3]} 37. g5+ {[%clk 0:01:46.3]} 37... Ke7 {[%clk
0:00:11.5]} 38. Ke4 {[%clk 0:01:46]} 38... Kd6 {[%clk 0:00:11.4]} 39. Ra6+
{[%clk 0:01:45.8]} 39... Ke7 {[%clk 0:00:04.3]} 40. Ke5 {[%clk 0:01:43.1]} 40...
Rd7 {[%clk 0:00:04.6]} 41. Rac6 {[%clk 0:01:42.5]} 41... Rbb7 {[%clk 0:00:03.7]}
42. d5 {[%clk 0:01:41.1]} 42... exd5 {[%clk 0:00:04]} 43. Rxd5 {[%clk 0:01:42]}
43... Ra7 {[%clk 0:00:01.4]} 44. Rxb5 {[%clk 0:01:34.3]} 44... Rac7 {[%clk
0:00:01.9]} 45. Rxc7 {[%clk 0:01:30.2]} 45... Rxc7 {[%clk 0:00:02.8]} 46. Rc5
{[%clk 0:01:30.3]} 46... Rd7 {[%clk 0:00:01.8]} 47. Rxc4 {[%clk 0:01:30.5]}
47... Rd1 {[%clk 0:00:02.3]} 48. Rd4 {[%clk 0:01:30.6]} 48... Re1+ {[%clk
0:00:02.4]} 49. Kd5 {[%clk 0:01:31.1]} 49... Kd7 {[%clk 0:00:01.5]} 50. c4
{[%clk 0:01:31.5]} 50... Rf1 {[%clk 0:00:01.1]} 51. b5 {[%clk 0:01:31.5]} 51...
Kc7 {[%clk 0:00:01.9]} 52. c5 {[%clk 0:01:31.8]} 52... Kb7 {[%clk 0:00:02]} 53.
Kd6 {[%clk 0:01:31.6]} 53... Rc1 {[%clk 0:00:01.8]} 54. b6 {[%clk 0:01:31.7]}
54... Rc2 {[%clk 0:00:01.7]} 55. Rd5 {[%clk 0:01:31.6]} 55... Rc1 {[%clk
0:00:01.9]} 56. f5 {[%clk 0:01:32]} 56... gxf5 {[%clk 0:00:02]} 57. Rxf5 {[%clk
0:01:32.9]} 57... Rd1+ {[%clk 0:00:02.8]} 58. Rd5 {[%clk 0:01:33]} 58... Rf1
{[%clk 0:00:02.5]} 59. Kd7 {[%clk 0:01:32.9]} 59... Rc1 {[%clk 0:00:02.7]} 60.
Rf5 {[%clk 0:01:32.8]} 60... Rc2 {[%clk 0:00:02.6]} 61. Rxf7 {[%clk 0:01:31]}
61... Rxc5 {[%clk 0:00:02.8]} 62. Kd6+ {[%clk 0:01:27.4]} 62... Kxb6 {[%clk
0:00:03]} 63. Rb7+ {[%clk 0:01:27.9]} 63... Kxb7 {[%clk 0:00:03.5]} 64. Kxc5
{[%clk 0:01:28.5]} 64... Kc7 {[%clk 0:00:04.4]} 65. g6 {[%clk 0:01:29.4]} 65...
Kd7 {[%clk 0:00:05.1]} 66. g7 {[%clk 0:01:30.3]} 66... Ke7 {[%clk 0:00:06]} 67.
g8=Q {[%clk 0:01:30.9]} 1-0